bitfinex/quotes_ETHUSD_20251221
["timestamp","ask_amount","ask_price","bid_price","bid_amount"]
[1766285224114,0.001,2970.5,2970.3,1.8764]
[1766285225221,0.001,2970.5,2969.7,3.84650321]
[1766285225423,0.001,2970.5,2969.8,0.52837032]
[1766285225721,0.001,2970.5,2970.0,1.9164]
[1766285226325,0.001,2970.5,2969.8,0.52837032]
[1766285226530,0.001,2970.5,2970.0,0.4792]
[1766285226708,0.001,2970.5,2970.1,1.4372]
[1766285227301,0.001,2970.5,2969.5,3.36752921]
[1766285227616,0.001,2970.5,2969.6,1.9164]
[1766285227617,0.01110986,2970.5,2969.6,1.9164]
[1766285229029,6.7330999,2970.4,2969.4,0.002]
[1766285229236,0.01010986,2970.3,2969.4,0.002]
[1766285229602,0.01010986,2970.3,2969.4,1.9184]
[1766285230733,0.441,2970.2,2969.4,1.9184]
[1766285231043,0.38178471,2970.1,2969.4,1.9184]
[1766285232342,4.24010021,2969.9,2969.1,0.442]
[1766285232502,4.24010021,2969.9,2969.2,1.9164]
[1766285232701,1.01208257,2970.0,2969.3,0.4792]
[1766285233010,1.01208257,2970.0,2969.1,3.80993099]
[1766285233011,0.56440773,2969.9,2969.4,1.9164]
[1766285234233,0.56440773,2969.9,2969.4,1.9184]
[1766285234818,4.24010021,2969.7,2968.9,1.9164]
[1766285235345,4.24010021,2969.7,2969.0,1.4372]
[1766285235499,0.56931725,2969.6,2969.0,1.9164]
[1766285236247,4.24010021,2969.3,2968.5,2.92847233]
[1766285236545,0.56931725,2969.6,2968.5,2.92847233]
[1766285236546,4.24010021,2969.1,2968.5,1.9164]
[1766285236703,0.441,2969.4,2968.2,1.9184]
[1766285236704,4.24010021,2968.9,2968.2,1.9184]
[1766285237313,0.441,2969.0,2968.2,0.002]
[1766285237497,0.441,2969.0,2968.3,1.9164]
[1766285238433,0.441,2969.0,2968.4,0.4792]
[1766285238637,0.441,2969.1,2968.3,4.24010021]
[1766285238817,0.441,2969.1,2968.3,7.60893547]
[1766285239215,0.441,2969.3,2968.8,0.4792]
[1766285239437,0.441,2969.3,2968.8,1.9164]
[1766285240804,0.441,2969.3,2968.4,0.442]
[1766285241006,1.25718499,2969.3,2968.4,0.442]
[1766285241506,1.25718499,2969.3,2968.4,2.3584]
[1766285241713,0.45110986,2969.3,2968.4,0.442]
[1766285241930,0.45110986,2969.3,2968.6,1.9164]
[1766285242717,0.45110986,2969.3,2968.4,3.8108175]
[1766285242918,0.45110986,2969.3,2968.6,0.4792]
[1766285243144,0.45110986,2969.3,2968.6,1.9164]
[1766285245388,0.45110986,2969.3,2968.3,3.37089397]
[1766285245389,0.8339899,2969.3,2968.3,1.8167]
[1766285245656,0.01010986,2968.8,2968.3,0.002]
[1766285245956,0.441,2968.7,2968.3,0.002]
[1766285246343,0.441,2968.7,2968.2,0.002]
[1766285246557,0.01010986,2968.5,2967.5,1.8147]
[1766285246723,0.01010986,2968.3,2967.2,1.8147]
[1766285246923,0.441,2968.2,2967.2,1.3352]
[1766285247148,0.01010986,2968.1,2967.3,0.47074764]
[1766285247524,3.37929277,2968.1,2967.1,1.8167]
[1766285247734,0.01010986,2967.9,2967.1,0.002]
[1766285248026,0.01010986,2967.7,2967.1,0.002]
[1766285248344,0.01010986,2967.4,2966.9,0.002]
[1766285249665,0.01010986,2967.4,2966.7,0.002]
[1766285250193,0.01011088,2967.2,2966.7,0.002]
[1766285250492,0.01011088,2967.2,2966.6,0.002]
[1766285250700,0.01011088,2967.0,2966.5,0.002]
[1766285250840,0.01011088,2967.0,2966.3,0.002]
[1766285252067,0.01011088,2967.0,2965.9,5.18833448]
[1766285252068,0.01011241,2966.8,2965.9,5.18833448]
[1766285252274,0.01011241,2966.8,2965.9,5.70736793]
[1766285252442,0.01011241,2966.8,2965.9,0.52103345]
[1766285252636,0.01011241,2966.6,2965.9,0.52103345]
[1766285252839,0.01011241,2966.6,2965.9,0.002]
[1766285253456,0.441,2966.7,2965.9,0.002]
[1766285253640,0.441,2966.7,2965.9,1.8167]
[1766285253841,0.441,2966.7,2966.0,1.8147]
[1766285254379,0.01011088,2967.2,2966.0,1.8147]
[1766285254380,0.01010986,2967.7,2966.2,1.3352]
[1766285254544,0.45110986,2967.4,2966.7,0.4795]
[1766285254745,0.45110986,2967.4,2966.7,1.8147]
[1766285255478,0.01011378,2967.2,2966.1,3.37143049]
[1766285255784,0.01011378,2967.0,2966.2,1.3534]
[1766285256079,0.01011378,2966.8,2966.0,5.24382986]
[1766285256641,0.01011378,2966.8,2966.1,1.8723]
[1766285257082,0.441,2967.1,2966.3,1.3534]
[1766285257268,0.441,2967.1,2966.4,1.8723]
[1766285258186,0.01011378,2967.0,2966.1,0.442]
[1766285258392,0.01011378,2967.0,2966.2,1.8723]
[1766285259788,0.01011378,2967.0,2966.2,5.24361223]
[1766285259974,0.01011378,2967.0,2966.3,1.8723]
[1766285260280,0.01011378,2967.0,2966.2,3.37131223]
[1766285260281,0.01011378,2967.4,2966.2,3.37131223]
[1766285260469,0.45111378,2967.4,2966.4,0.5189]
[1766285260673,0.45111378,2967.4,2966.6,1.8723]
[1766285261488,0.01010986,2967.7,2966.9,1.8723]
[1766285261793,0.45110986,2967.7,2966.9,1.8723]
[1766285262879,0.001,2967.4,2966.9,1.8723]
[1766285263068,0.001,2967.4,2966.9,1.3534]
[1766285263274,0.001,2967.4,2967.0,1.8723]
[1766285263674,0.001,2967.4,2967.1,0.03370294]
[1766285263876,0.001,2967.4,2967.1,3.37022005]
[1766285264179,0.001,2967.4,2966.9,3.37051011]
[1766285264180,0.01010986,2967.9,2967.2,1.8723]
[1766285266490,0.01010986,2967.9,2967.1,1.8723]
[1766285266689,0.45110986,2968.1,2967.2,3.3700785]
[1766285266876,0.01010986,2968.1,2967.6,0.5189]
[1766285267191,0.01010986,2968.1,2967.2,3.3700785]
[1766285267390,0.441,2968.2,2967.5,1.8723]
[1766285267558,0.441,2968.2,2967.5,0.5189]
[1766285267757,0.441,2968.2,2967.6,1.8723]
[1766285269391,0.441,2968.2,2967.4,3.36993298]
[1766285269595,0.45211378,2968.6,2967.6,3.36972494]
[1766285269763,0.01111378,2968.6,2967.9,1.8723]
[1766285270687,0.001,2968.2,2967.9,1.8723]
[1766285272494,0.001,2968.2,2967.6,1.8723]
[1766285272797,0.001,2968.2,2967.5,0.442]
[1766285272967,0.001,2968.2,2967.6,1.8723]
[1766285273166,0.001,2968.2,2967.7,0.5189]
[1766285273368,0.001,2968.2,2967.8,1.8723]
[1766285273770,0.001,2968.2,2967.5,5.24210164]
[1766285273974,0.001,2968.2,2967.6,1.8723]
[1766285274501,0.01011378,2968.1,2967.6,1.8723]
[1766285275503,0.001,2968.2,2967.6,1.8723]
[1766285279905,0.001,2968.2,2967.4,1.8723]
[1766285280088,0.001,2968.2,2967.6,1.8723]
[1766285280420,0.001,2968.2,2967.3,3.81202263]
[1766285280707,0.01111378,2968.6,2967.3,7.18208969]
[1766285280876,0.442,2968.6,2967.5,1.3534]
[1766285281076,0.442,2968.6,2967.8,0.5189]
[1766285281305,0.442,2968.6,2967.7,1.3534]
[1766285281306,0.442,2968.6,2968.0,1.8723]
[1766285281695,0.83417463,2968.6,2968.0,1.8723]
[1766285281893,4.20277415,2968.6,2968.0,1.8723]
[1766285282075,0.39317463,2968.6,2968.0,1.8723]
[1766285283076,0.001,2968.6,2967.9,3.36937171]
[1766285283281,0.001,2968.6,2968.3,0.5189]
[1766285283481,0.001,2968.6,2968.3,1.8723]
[1766285283912,0.441,2968.9,2968.1,0.442]
[1766285284096,0.441,2968.9,2968.3,0.5189]
[1766285284294,0.441,2968.9,2968.5,1.8723]
[1766285284500,0.45111378,2969.1,2968.5,1.8723]
[1766285284814,0.83402799,2969.1,2968.5,1.8723]
[1766285285311,0.39302799,2969.1,2968.5,1.8723]
[1766285285491,0.83402799,2969.1,2968.5,1.8723]
[1766285287687,0.01011378,2968.9,2968.0,0.442]
[1766285288012,0.01011378,2968.9,2968.2,0.515]
[1766285288218,0.01011378,2968.9,2968.2,1.8759]
[1766285289105,0.01011378,2968.9,2968.0,0.442]
[1766285289414,0.01011378,2968.9,2968.1,1.3609]
[1766285289612,0.01011378,2968.9,2968.2,1.8759]
[1766285289815,0.01011378,2968.9,2968.3,0.515]
[1766285290007,0.01011378,2968.9,2968.3,1.8759]
[1766285290511,0.01011378,2968.9,2967.4,5.63486213]
[1766285290512,0.01011378,2968.5,2967.7,1.8759]
[1766285290717,0.441,2968.4,2967.7,1.8759]
[1766285291513,0.441,2968.4,2967.4,3.37192465]
[1766285291514,0.01011378,2968.3,2967.4,3.37192465]
[1766285291714,0.01011378,2968.3,2967.4,0.002]
[1766285291885,0.01011378,2968.3,2967.5,1.8759]
[1766285292286,0.01011378,2968.3,2967.6,1.3609]
[1766285292488,0.441,2968.4,2967.5,1.3609]
[1766285292691,0.01011378,2968.7,2967.8,1.3609]
[1766285292921,0.441,2968.6,2968.1,1.8759]
[1766285293484,0.01011378,2968.5,2967.7,0.442]
[1766285293690,3.37881851,2968.5,2967.6,1.8759]
[1766285293890,0.01011378,2968.3,2967.6,1.8759]
[1766285295617,3.37906906,2968.3,2967.4,1.8779]
[1766285295818,0.33790691,2968.2,2967.5,1.8759]
[1766285296141,0.441,2968.4,2967.9,1.3609]
[1766285296327,0.01011378,2968.5,2968.0,1.8759]
[1766285296528,0.441,2968.4,2968.0,1.8759]
[1766285296846,0.441,2968.4,2967.7,0.515]
[1766285297018,0.441,2968.4,2967.9,1.8759]
[1766285298142,0.38197134,2968.4,2967.9,1.8759]
[1766285298325,0.38197134,2968.4,2967.6,3.36972246]
[1766285298528,0.441,2968.5,2967.9,1.3609]
[1766285298712,0.441,2968.5,2968.0,1.8759]
[1766285299731,0.01011378,2968.4,2967.6,1.3609]
[1766285299930,0.01011378,2968.4,2967.8,1.3609]
[1766285300737,0.01011378,2968.4,2967.5,1.3629]
[1766285300738,0.45111378,2968.4,2967.5,1.3629]
[1766285300945,0.01011378,2968.2,2967.5,2.3199]
[1766285301113,0.39312118,2968.2,2967.5,2.3199]
[1766285301313,0.39312118,2968.2,2967.6,1.8759]
[1766285302747,0.01011378,2968.2,2967.6,1.8759]
[1766285303256,3.37917197,2968.2,2967.6,1.8759]
[1766285303954,0.01011378,2968.2,2967.6,1.8759]
[1766285304253,3.37922116,2968.2,2967.6,1.8759]
[1766285305217,0.01011378,2968.2,2967.6,1.8759]
[1766285305423,0.3931314,2968.2,2967.6,1.8759]
[1766285305756,3.81997151,2968.4,2967.6,1.8759]
[1766285309752,0.01011378,2968.2,2967.6,1.8655]
[1766285312555,3.37916032,2968.2,2967.5,0.002]
[1766285313250,0.01011378,2968.0,2967.5,0.002]
[1766285320061,3.37940609,2968.0,2967.5,0.002]
[1766285320266,3.71834971,2968.0,2967.5,0.002]
[1766285321250,0.3490574,2968.0,2967.5,0.002]
[1766285322362,4.15933334,2968.0,2967.5,0.002]
[1766285323781,0.7900574,2968.0,2967.5,0.002]
[1766285329048,0.77994362,2968.0,2967.5,1.9078]
[1766285329440,0.441,2968.0,2967.5,1.9078]
[1766285330565,0.441,2968.0,2967.6,1.9058]
[1766285335441,0.45111378,2968.0,2967.6,1.9058]
[1766285335967,0.441,2968.0,2967.6,1.9058]
[1766285340972,0.01011378,2968.4,2967.6,1.9058]
[1766285341181,3.56795782,2969.2,2967.7,2.09658]
[1766285341182,0.441,2968.3,2967.7,2.09658]
[1766285341479,0.441,2968.3,2967.7,1.9058]
[1766285341984,0.441,2968.3,2967.5,1.9078]
[1766285342479,0.01011378,2968.2,2967.5,0.002]
[1766285343491,0.01011378,2968.2,2967.6,1.9058]
[1766285345386,3.37920336,2968.2,2967.6,1.9058]
[1766285345591,3.37920336,2968.2,2967.5,0.002]
[1766285346269,3.37920336,2968.2,2967.5,1.8457]
[1766285350354,3.37920336,2968.2,2967.5,0.002]
[1766285350355,4.09569983,2968.2,2967.5,0.002]
[1766285350550,0.01011378,2968.0,2967.5,0.002]
[1766285350763,0.45111378,2968.3,2967.6,1.3751]
[1766285350965,3.36872705,2968.5,2967.7,1.8437]
[1766285351166,0.77898408,2968.4,2967.8,0.4686]
[1766285351365,0.77898408,2968.4,2967.8,1.8437]
[1766285351562,0.33798408,2968.4,2967.5,0.444]
[1766285351770,0.441,2968.5,2968.0,6.08892181]
[1766285352375,0.441,2968.5,2968.0,1.8437]
[1766285353294,0.001,2968.6,2968.2,4.24522181]
[1766285353461,0.001,2968.6,2968.3,1.8437]
[1766285354254,0.001,2968.6,2967.9,0.442]
[1766285354457,0.001,2968.6,2967.8,0.442]
[1766285354458,0.01011378,2968.5,2967.8,0.442]
[1766285354797,0.01011378,2968.5,2967.8,2.75442218]
[1766285355880,0.45111378,2968.5,2967.8,2.31242218]
[1766285357758,0.441,2968.5,2967.8,2.31242218]
[1766285358675,0.441,2968.5,2967.9,1.8437]
[1766285359392,0.441,2968.5,2967.8,4.71394399]
[1766285359586,0.441,2968.5,2968.0,1.3751]
[1766285361568,0.441,2968.5,2968.0,1.8437]
[1766285362194,0.001,2968.6,2968.0,1.8437]
[1766285362499,0.441,2968.5,2967.9,1.3751]
[1766285362693,0.441,2968.5,2967.7,3.36961236]
[1766285362895,0.001,2968.6,2968.1,1.3751]
[1766285363097,0.001,2968.6,2968.3,1.3751]
[1766285363302,0.001,2968.6,2968.3,1.8437]
[1766285367297,0.001,2968.6,2967.8,0.38116124]
[1766285367499,0.001,2968.6,2968.0,0.002]
[1766285367679,0.001,2968.6,2968.1,1.8218]
[1766285367880,0.001,2968.6,2968.0,0.002]
[1766285367881,0.3830483,2968.6,2968.0,0.002]
[1766285368407,0.01011378,2968.5,2968.0,0.002]
[1766285369796,0.01011378,2968.3,2967.6,1.8218]
[1766285369993,0.45111378,2968.3,2967.6,1.8218]
[1766285370188,0.45111378,2968.3,2967.5,0.002]
[1766285370515,0.45111378,2968.3,2967.7,1.8218]
[1766285373806,0.45111378,2968.3,2967.5,0.002]
[1766285373976,0.45111378,2968.3,2967.6,1.8218]
[1766285374908,0.45111378,2968.3,2967.6,1.3977]
[1766285375107,0.441,2968.3,2967.8,1.8639]
[1766285383912,0.441,2968.3,2967.9,1.8639]
[1766285384115,0.001,2968.3,2967.8,0.002]
[1766285384493,0.001,2968.3,2968.0,0.4662]
[1766285384692,0.001,2968.3,2968.0,1.8639]
[1766285389217,0.001,2968.3,2968.1,1.8639]
[1766285390411,0.001,2968.3,2967.8,0.002]
[1766285391327,0.001,2968.3,2967.8,1.8659]
[1766285396332,0.001,2968.3,2967.8,0.002]
[1766285396525,0.001,2968.3,2967.6,0.002]
[1766285396836,0.34811072,2968.2,2967.6,0.002]
[1766285399418,3.71718174,2968.2,2967.6,0.002]
[1766285400557,0.34811072,2968.2,2967.6,0.002]
[1766285400836,0.441,2968.1,2967.6,1.8659]
[1766285402636,0.441,2968.1,2967.6,0.002]
[1766285402831,0.85691951,2968.1,2967.6,0.002]
[1766285404208,0.85691951,2968.1,2967.6,1.8659]
[1766285404415,0.441,2968.1,2967.6,1.8659]
[1766285404928,0.441,2968.1,2967.6,0.002]
[1766285406645,0.441,2968.1,2967.6,1.8957]
[1766285407944,0.441,2968.1,2967.6,0.002]
[1766285408517,0.441,2968.1,2967.7,1.8937]
[1766285409647,0.442,2968.1,2967.7,1.8937]
[1766285410866,0.442,2968.1,2967.6,0.002]
[1766285411148,0.442,2968.1,2967.8,1.8937]
[1766285412956,0.001,2968.1,2967.8,1.8937]
[1766285413248,0.001,2968.1,2967.7,1.4053]
[1766285413423,0.001,2968.1,2967.8,1.8937]
[1766285419528,0.001,2968.1,2967.6,1.8957]
[1766285421327,0.001,2968.1,2967.7,1.8937]
[1766285428754,0.001,2968.1,2967.6,1.4073]
[1766285428962,0.001,2968.1,2967.8,1.4053]
[1766285429267,0.001,2968.1,2967.9,1.8937]
[1766285429830,0.001,2968.3,2967.8,1.3158]
[1766285430028,0.001,2968.3,2968.1,0.5085]
[1766285430272,0.001,2968.3,2968.1,1.8243]
[1766285430433,0.001,2968.3,2968.1,2.00673]
[1766285433170,0.442,2968.6,2968.2,1.8243]
[1766285433538,0.001,2968.6,2968.2,1.8243]
[1766285439177,0.001,2968.6,2968.1,0.18243]
[1766285439376,0.001,2968.6,2968.0,1.7946]
[1766285442681,0.001,2968.6,2967.7,0.63177]
[1766285442974,0.001,2968.6,2967.9,0.4664]
[1766285443178,0.001,2968.6,2968.0,1.7946]
[1766285446680,0.001,2968.6,2967.7,0.63177]
[1766285446882,0.001,2968.6,2968.0,0.4664]
[1766285447088,0.001,2968.6,2968.0,1.7946]
[1766285450784,0.001,2968.6,2967.8,0.40034589]
[1766285450985,0.001,2968.6,2968.1,1.3282]
[1766285451156,0.001,2968.6,2968.1,1.7946]
[1766285455188,0.001,2968.6,2968.0,0.002]
[1766285455390,0.001,2968.6,2968.1,1.7946]
[1766285456582,0.001,2968.6,2968.0,0.42338425]
[1766285456792,0.001,2968.6,2968.2,0.4664]
[1766285457252,0.001,2968.6,2968.0,1.7966]
[1766285457457,0.001,2968.6,2968.1,1.3282]
[1766285457655,0.001,2968.6,2968.1,1.7946]
[1766285460196,4.24534175,2968.6,2968.0,0.002]
[1766285460368,4.24434175,2968.4,2968.0,0.002]
[1766285460572,4.24434175,2968.2,2967.6,0.002]
[1766285460894,4.24434175,2968.0,2967.6,0.002]
[1766285461110,4.69545553,2968.3,2967.6,0.002]
[1766285461263,0.441,2968.3,2967.7,1.3282]
[1766285461465,5.1548873,2968.3,2967.7,1.3282]
[1766285461776,5.1548873,2968.3,2967.7,1.7946]
[1766285463493,5.1548873,2968.3,2967.6,0.002]
[1766285463693,4.24434175,2968.1,2967.6,0.002]
[1766285466288,4.24434175,2967.9,2967.6,0.002]
[1766285466481,4.24434175,2967.9,2967.5,0.002]
[1766285466983,4.24434175,2968.1,2967.5,1.8402]
[1766285467315,0.441,2968.3,2967.6,1.3453]
[1766285467467,0.441,2968.2,2967.7,0.4929]
[1766285467675,0.441,2968.2,2967.7,1.8382]
[1766285468801,4.24434175,2968.0,2967.5,0.002]
[1766285474008,5.15387593,2968.2,2967.6,1.3453]
[1766285474310,5.15387593,2968.2,2967.6,1.8382]
[1766285476911,0.441,2968.2,2967.5,3.37183206]
[1766285477078,0.441,2968.2,2967.8,1.3453]
[1766285477279,0.441,2968.2,2967.8,1.8382]
[1766285479014,0.441,2968.2,2967.5,0.03569839]
[1766285479303,0.01011378,2968.5,2968.0,1.3453]
[1766285479510,0.001,2968.2,2968.0,1.8382]
[1766285482227,0.441,2968.4,2967.9,4.24484082]
[1766285482407,0.001,2968.6,2968.1,0.4929]
[1766285482593,0.001,2968.6,2968.2,1.37899045]
[1766285482787,0.001,2968.6,2968.2,1.3453]
[1766285483188,0.001,2968.6,2968.4,1.3453]
[1766285484694,0.001,2968.6,2968.4,1.8467]
[1766285484892,0.001,2969.1,2968.5,1.8147]
[1766285485123,4.24347082,2969.6,2968.5,1.8147]
[1766285485124,0.001,2970.3,2969.0,0.5014]
[1766285485323,0.001,2970.3,2969.5,1.3133]
[1766285485646,0.001,2970.3,2969.4,4.24347082]
[1766285485647,0.001,2970.3,2969.9,1.8147]
[1766285486189,0.001,2970.3,2969.6,0.442]
[1766285486570,0.001,2970.3,2970.0,1.8147]
[1766285487340,0.001,2970.5,2969.9,0.5014]
[1766285487627,0.001,2970.5,2970.1,1.8147]
[1766285488491,0.001,2970.5,2970.3,1.8147]
[1766285488692,0.001,2970.6,2969.9,1.8147]
[1766285488892,0.001,2970.6,2970.0,0.442]
[1766285489095,0.001,2970.6,2970.3,0.5014]
[1766285489331,0.001,2970.6,2970.4,1.8147]
[1766285489721,0.001,2971.5,2970.7,0.5014]
[1766285489940,0.441,2971.4,2970.9,0.5014]
[1766285490729,0.441,2971.4,2970.8,1.3133]
[1766285490928,0.441,2971.4,2970.6,0.5014]
[1766285490929,0.45111378,2971.4,2970.6,0.5014]
[1766285491115,0.806089,2971.3,2970.6,0.5014]
[1766285491500,0.806089,2971.3,2970.6,1.8147]
[1766285493331,0.806089,2971.3,2970.6,2.8262468]
[1766285493958,7.60978272,2971.5,2970.7,1.3133]
[1766285493959,0.001,2971.5,2970.7,1.3133]
[1766285494104,0.001,2971.5,2971.1,1.3133]
[1766285494310,0.001,2971.5,2970.6,6.73264633]
[1766285494530,0.001,2971.5,2971.1,1.8147]
[1766285494843,0.001,2971.5,2971.2,0.4793]
[1766285495149,0.001,2971.3,2971.2,0.4793]
[1766285495302,0.001,2971.3,2971.1,1.4293]
[1766285495504,4.24447082,2971.3,2970.5,1.4293]
[1766285495740,0.43456086,2971.2,2970.4,0.4793]
[1766285495931,4.2535846,2971.0,2970.3,1.4293]
[1766285496238,4.2535846,2971.0,2970.2,0.4793]
[1766285496415,1.01162526,2970.9,2970.2,0.4793]
[1766285496809,1.01162526,2970.9,2970.4,1.9086]
[1766285497022,1.01162526,2970.9,2970.1,1.9086]
[1766285497217,1.01162526,2970.9,2970.0,0.441]
[1766285497438,1.01162526,2970.9,2970.2,0.4793]
[1766285497611,1.01162526,2970.9,2970.1,6.15207082]
[1766285497809,0.001,2971.3,2970.9,1.4293]
[1766285498126,1.01148882,2971.2,2971.0,1.9086]
[1766285498329,0.001,2971.3,2970.5,0.47466436]
[1766285498633,0.001,2971.3,2971.0,1.9086]
[1766285500130,0.001,2971.3,2970.5,1.01144449]
[1766285500335,0.001,2971.3,2970.6,1.9086]
[1766285500673,0.38183043,2971.3,2970.3,0.441]
[1766285500839,3.74736195,2971.3,2970.4,1.9086]
[1766285502007,3.74736195,2971.3,2970.0,1.01162184]
[1766285502008,4.24347082,2970.8,2970.0,1.01162184]
[1766285502213,0.42434708,2970.7,2969.9,1.9086]
[1766285502648,1.01172078,2970.6,2969.9,1.9086]
[1766285504947,1.01172078,2970.6,2969.5,3.36747238]
[1766285505252,1.01172078,2970.6,2969.7,1.9086]
[1766285505253,0.441,2970.5,2969.7,1.9086]
[1766285505463,0.62870679,2970.5,2969.7,1.9086]
[1766285507453,11.60507959,2970.5,2969.3,1.9086]
[1766285507620,11.60507959,2970.5,2969.3,2.3496]
[1766285507820,4.24347082,2970.2,2969.3,1.9086]
[1766285508035,0.42434708,2970.1,2969.9,0.002]
[1766285508721,4.24237936,2970.1,2969.0,0.441]
[1766285509252,4.24237936,2970.1,2969.0,2.3496]
[1766285509626,4.24237936,2970.1,2969.0,1.9086]
[1766285509943,4.24237936,2970.1,2969.1,1.9086]
[1766285509944,4.24235732,2970.1,2969.1,1.9086]
[1766285510249,0.94977195,2970.0,2969.1,1.9086]
[1766285510751,1.39077195,2970.0,2969.4,1.4293]
[1766285511051,0.441,2970.0,2969.5,1.9086]
[1766285511636,1.01189141,2969.9,2969.1,6.73604579]
[1766285511834,0.441,2970.0,2969.1,6.73604579]
[1766285512032,1.01191871,2970.1,2969.5,0.4793]
[1766285512230,1.01191871,2970.1,2969.1,6.73604579]
[1766285512231,0.441,2970.6,2969.9,0.4793]
[1766285512436,1.45280267,2970.6,2970.1,1.9086]
[1766285512654,0.441,2970.6,2970.1,1.9086]
[1766285514444,0.441,2970.6,2969.8,0.4793]
[1766285514632,0.48190197,2970.5,2969.8,0.4793]
[1766285515555,0.001,2970.9,2969.9,1.4293]
[1766285515853,0.441,2970.7,2970.0,0.4793]
[1766285516036,0.441,2970.7,2970.1,1.9086]
[1766285516238,0.441,2970.7,2970.2,1.4293]
[1766285519060,0.82179948,2970.7,2970.2,1.9086]
[1766285519360,0.441,2970.7,2970.3,1.01163208]
[1766285519573,0.441,2970.7,2970.0,1.4293]
[1766285519777,0.441,2970.7,2969.9,0.4793]
[1766285519960,0.441,2970.7,2969.9,1.49100031]
[1766285520462,0.01011378,2970.6,2969.6,0.4793]
[1766285520777,0.01011378,2970.4,2969.5,1.01184021]
[1766285520949,0.441,2970.3,2969.3,2.3496]
[1766285521144,0.441,2970.3,2969.4,1.9086]
[1766285522364,0.441,2970.2,2969.4,1.9086]
[1766285522542,0.8668706,2970.2,2969.4,1.9086]
[1766285522866,0.8668706,2970.2,2969.5,1.4293]
[1766285523067,0.441,2970.2,2969.4,3.36766451]
[1766285523288,0.441,2970.2,2969.7,1.4293]
[1766285526266,0.441,2970.2,2969.7,1.9383]
[1766285526464,0.441,2970.2,2969.4,1.9552]
[1766285526648,0.441,2970.2,2969.5,1.9552]
[1766285526976,0.441,2970.2,2969.6,1.4462]
[1766285527276,0.441,2970.2,2969.6,1.9552]
[1766285530353,0.441,2970.2,2969.4,3.3676529]
[1766285530698,0.441,2970.3,2969.8,1.9552]
[1766285531889,0.001,2970.2,2969.8,1.9552]
[1766285532649,0.001,2970.2,2969.6,3.36744053]
[1766285533177,0.001,2970.2,2969.7,1.4462]
[1766285533382,0.001,2970.2,2969.9,1.9552]
[1766285533883,0.001,2970.2,2970.0,1.4462]
[1766285534785,0.441,2970.6,2969.7,3.80834019]
[1766285534984,0.441,2970.6,2970.1,0.509]
[1766285535186,0.441,2970.6,2969.7,3.80834019]
[1766285535187,0.441,2970.5,2970.2,1.9552]
[1766285536378,0.441,2970.5,2970.2,1.4462]
[1766285537295,0.441,2970.5,2970.0,0.509]
[1766285539594,0.441,2970.5,2969.9,1.436]
[1766285539895,0.441,2970.5,2969.7,2.374]
[1766285540061,0.86694387,2970.5,2969.8,1.436]
[1766285540560,0.86794387,2970.5,2969.8,1.933]
[1766285540963,0.42694387,2970.5,2969.8,1.933]
[1766285542998,0.42694387,2970.5,2969.7,0.441]
[1766285543166,0.001,2970.5,2969.8,1.436]
[1766285543367,0.001,2970.5,2969.9,1.933]
[1766285547306,4.23875256,2970.0,2969.5,0.002]
[1766285547671,0.441,2970.1,2969.5,0.002]
[1766285549300,0.441,2970.1,2969.8,0.002]
[1766285549474,0.46898663,2970.0,2969.8,0.002]
[1766285558618,4.70946909,2970.0,2969.1,0.443]
[1766285558785,4.24048246,2969.8,2969.1,0.002]
[1766285559512,4.24048246,2969.8,2969.1,1.9045]
[1766285559709,5.04914215,2969.8,2969.1,1.9045]
[1766285561023,0.80865969,2969.8,2969.1,1.9045]
[1766285561324,3.37718434,2970.0,2969.1,1.9045]
[1766285561325,4.24048246,2969.9,2969.1,1.9045]
[1766285562018,4.24048246,2969.9,2969.2,1.4192]
[1766285562419,4.68148246,2970.1,2969.2,1.9025]
[1766285562611,0.441,2970.1,2969.3,0.4833]
[1766285562921,0.38179291,2970.0,2969.4,1.9025]
[1766285563122,0.38179291,2970.0,2969.4,1.4192]
[1766285563314,4.62227537,2970.0,2969.4,1.4192]
[1766285563498,0.38179291,2970.0,2969.4,1.4192]
[1766285563821,4.68148246,2970.1,2969.2,1.9025]
[1766285564027,4.68148246,2970.1,2969.3,1.4192]
[1766285564394,8.04838084,2970.1,2969.3,1.4192]
[1766285565194,4.24048246,2969.9,2969.2,0.4833]
[1766285565394,4.24048246,2969.9,2969.1,1.8622]
[1766285565594,0.42404825,2969.8,2969.1,0.002]
[1766285567426,3.7912976,2969.8,2969.1,0.002]
[1766285567726,0.42404825,2969.8,2969.1,0.002]
[1766285567925,0.001,2970.2,2969.5,1.9025]
[1766285568123,0.001,2970.2,2969.7,1.9025]
[1766285569134,0.001,2970.2,2969.8,1.4192]
[1766285569320,0.001,2970.2,2969.9,1.9025]
[1766285569900,0.001,2970.2,2969.4,3.36764215]
[1766285570117,0.001,2970.2,2969.8,1.4192]
[1766285570318,0.001,2970.2,2969.8,1.9025]
[1766285573533,0.001,2970.2,2969.8,1.9045]
[1766285574027,0.001,2970.2,2969.8,0.002]
[1766285574426,4.24048246,2970.0,2969.1,0.002]
[1766285574731,0.42404825,2969.9,2969.7,1.4192]
[1766285574906,0.001,2970.2,2969.5,4.24048246]
[1766285575110,0.001,2970.2,2969.6,1.4192]
[1766285575308,0.001,2970.2,2969.8,1.4192]